fUSD/lending_fUSD_20240803
["ID","MTS","AMOUNT","RATE_DAILY","PERIOD"]
[333966376,1722651044054,-500.0,0.00016712,2]
[333966378,1722651044063,-500.0,0.00016712,2]
[333966380,1722651044072,-777.91,0.00016712,2]
[333966382,1722651044082,-500.0,0.00016712,2]
[333966384,1722651044091,-500.0,0.00016712,2]
[333966386,1722651044101,-500.0,0.00016712,2]
[333966387,1722651044111,-500.0,0.00016712,2]
[333966389,1722651044122,-500.0,0.00016712,2]
[333966391,1722651044133,-500.0,0.00016712,2]
[333966394,1722651044144,-571.24,0.00016712,2]
[333966396,1722651044154,-500.0,0.00016712,2]
[333966397,1722651044163,-579.3,0.00016712,2]
[333966399,1722651044174,-500.0,0.00016712,2]
[333966401,1722651044184,-1024.5,0.00016712,2]
[333966403,1722651044194,-500.0,0.00016712,2]
[333966405,1722651044204,-877.79,0.00016712,2]
[333966407,1722651044213,-776.25,0.00016712,2]
[333966409,1722651044223,-500.0,0.00016712,2]
[333966411,1722651044233,-500.0,0.00016712,2]
[333966413,1722651044243,-500.0,0.00016712,2]
[333966415,1722651044252,-505.19,0.00016712,2]
[333966416,1722651044263,-500.0,0.00016712,2]
[333966417,1722651044272,-500.0,0.00016712,2]
[333966418,1722651044281,-500.0,0.00016712,2]
[333966419,1722651044291,-500.0,0.00016712,2]
[333966420,1722651044300,-613.45,0.00016712,2]
[333966421,1722651044309,-500.0,0.00016712,2]
[333966422,1722651044319,-500.0,0.00016712,2]
[333966423,1722651044328,-500.0,0.00016712,2]
[333966425,1722651044340,-796.47,0.00016712,2]
[333966427,1722651044351,-500.0,0.00016712,2]
[333966429,1722651044360,-502.92,0.00016712,2]
[333966431,1722651044370,-500.0,0.00016712,2]
[333966433,1722651044379,-1034.64,0.00016712,2]
[333966435,1722651044388,-1557.68,0.00016712,2]
[333966437,1722651044397,-785.43,0.00016712,2]
[333966439,1722651044406,-1344.34,0.00016712,2]
[333966441,1722651044415,-722.02,0.00016712,2]
[333966443,1722651044425,-500.0,0.00016712,2]
[333966445,1722651044435,-500.0,0.00016712,2]
[333966447,1722651044444,-1325.29,0.00016712,2]
[333966449,1722651044454,-500.0,0.00016712,2]
[333966451,1722651044464,-200.50750439,0.00016712,2]
[333966452,1722651044478,-500.0,0.00016712,2]
[333966454,1722651044488,-500.0,0.00016712,2]
[333966456,1722651044497,-500.0,0.00016712,2]
[333966458,1722651044507,-1277.95,0.00016712,2]
[333966460,1722651044516,-500.0,0.00016712,2]
[333966462,1722651044525,-1525.95,0.00016712,2]
[333966464,1722651044536,-500.0,0.00016712,2]
[333966466,1722651044545,-373.71496855,0.00016712,2]
[333966468,1722651044554,-500.0,0.00016712,2]
[333966470,1722651044568,-528.47,0.00016712,2]
[333966472,1722651044578,-500.0,0.00016712,2]
[333966474,1722651044587,-1097.79,0.00016712,2]
[333966476,1722651044597,-857.17,0.00016712,2]
[333966478,1722651044606,-500.0,0.00016712,2]
[333966480,1722651044615,-810.13,0.00016712,2]
[333966482,1722651044624,-500.0,0.00016712,2]
[333966484,1722651044634,-500.0,0.00016712,2]
[333966486,1722651044643,-500.0,0.00016712,2]
[333966488,1722651044653,-504.63,0.00016712,2]
[333966490,1722651044662,-500.0,0.00016712,2]
[333966492,1722651044672,-500.0,0.00016712,2]
[333966494,1722651044681,-500.0,0.00016712,2]
[333966496,1722651044691,-500.0,0.00016712,2]
[333966498,1722651044700,-500.0,0.00016712,2]
[333966500,1722651044710,-1756.89,0.00016712,2]
[333966502,1722651044720,-500.0,0.00016712,2]
[333966504,1722651044729,-500.0,0.00016712,2]
[333966506,1722651044738,-500.0,0.00016712,2]
[333966508,1722651044748,-500.0,0.00016712,2]
[333966510,1722651044759,-993.34,0.00016712,2]
[333966512,1722651044770,-500.0,0.00016712,2]
[333966514,1722651044779,-500.0,0.00016712,2]
[333966516,1722651044789,-1211.32,0.00016712,2]
[333966518,1722651044799,-500.0,0.00016712,2]
[333966520,1722651044809,-1084.87,0.00016712,2]
[333966522,1722651044818,-500.0,0.00016712,2]
[333966525,1722651044828,-947.53,0.00016712,2]
[333966527,1722651044838,-879.82,0.00016712,2]
[333966529,1722651044848,-705.8,0.00016712,2]
[333966531,1722651044857,-500.0,0.00016712,2]
[333966533,1722651044867,-500.0,0.00016712,2]
[333966535,1722651044875,-1354.25,0.00016712,2]
[333966536,1722651044885,-784.1,0.00016712,2]
[333966537,1722651044895,-698.62,0.00016712,2]
[333966538,1722651044905,-500.0,0.00016712,2]
[333966539,1722651044915,-707.56,0.00016712,2]
[333966540,1722651044924,-946.22,0.00016712,2]
[333966541,1722651044934,-500.0,0.00016712,2]
[333966542,1722651044943,-927.25,0.00016712,2]
[333966543,1722651044953,-500.0,0.00016712,2]
[333966544,1722651044962,-657.15,0.00016712,2]
[333966545,1722651044972,-500.0,0.00016712,2]
[333966546,1722651044982,-858.16,0.00016712,2]
[333966547,1722651044991,-500.0,0.00016712,2]
[333966548,1722651045000,-500.0,0.00016712,2]
[333966549,1722651045010,-961.52,0.00016712,2]
[333966550,1722651045019,-500.0,0.00016712,2]
[333966551,1722651045028,-500.0,0.00016712,2]
[333966552,1722651045038,-848.5,0.00016712,2]
[333966553,1722651045047,-500.0,0.00016712,2]
[333966554,1722651045056,-1026.21,0.00016712,2]
[333966555,1722651045066,-812.5,0.00016712,2]
[333966556,1722651045075,-500.0,0.00016712,2]
[333966557,1722651045084,-500.0,0.00016712,2]
[333966558,1722651045094,-500.0,0.00016712,2]
[333966559,1722651045105,-500.0,0.00016712,2]
[333966560,1722651045117,-861.53,0.00016712,2]
[333966561,1722651045126,-500.0,0.00016712,2]
[333966562,1722651045136,-584.29,0.00016712,2]
[333966563,1722651045146,-500.0,0.00016712,2]
[333966564,1722651045155,-500.0,0.00016712,2]
[333966565,1722651045166,-500.0,0.00016712,2]
[333966566,1722651045175,-500.0,0.00016712,2]
[333966567,1722651045184,-625.23,0.00016712,2]
[333966568,1722651045194,-502.37706245,0.00016712,2]
[333966569,1722651045203,-959.41,0.00016712,2]
[333966570,1722651045212,-500.0,0.00016712,2]
[333966571,1722651045221,-500.0,0.00016712,2]
[333966572,1722651045231,-500.0,0.00016712,2]
[333966573,1722651045240,-1024.08,0.00016712,2]
[333966574,1722651045251,-1192.68,0.00016712,2]
[333966575,1722651045260,-885.45,0.00016712,2]
[333966576,1722651045270,-612.63,0.00016712,2]
[333966577,1722651045280,-500.0,0.00016712,2]
[333966578,1722651045289,-791.32,0.00016712,2]
[333966579,1722651045299,-1070.93,0.00016712,2]
[333966580,1722651045308,-1340.04,0.00016712,2]
[333966581,1722651045318,-1107.77,0.00016712,2]
[333966582,1722651045328,-509.26,0.00016712,2]
[333966583,1722651045337,-500.0,0.00016712,2]
[333966584,1722651045348,-801.03,0.00016712,2]
[333966585,1722651045358,-500.0,0.00016712,2]
[333966586,1722651045368,-500.0,0.00016712,2]
[333966587,1722651045377,-500.0,0.00016712,2]
[333966588,1722651045386,-500.0,0.00016712,2]
[333966589,1722651045396,-500.0,0.00016712,2]
[333966590,1722651045406,-1083.61,0.00016712,2]
[333966591,1722651045415,-818.78,0.00016712,2]
[333966592,1722651045424,-500.0,0.00016712,2]
[333966593,1722651045434,-500.0,0.00016712,2]
[333966594,1722651045443,-500.0,0.00016712,2]
[333966595,1722651045453,-500.0,0.00016712,2]
[333966596,1722651045462,-500.0,0.00016712,2]
[333966597,1722651045472,-557.05,0.00016712,2]
[333966598,1722651045481,-783.6,0.00016712,2]
[333966599,1722651045491,-500.0,0.00016712,2]
[333966600,1722651045500,-720.07,0.00016712,2]
[333966601,1722651045509,-586.09,0.00016712,2]
[333966602,1722651045519,-500.0,0.00016712,2]
[333966603,1722651045528,-500.0,0.00016712,2]
[333966604,1722651045538,-1062.03,0.00016712,2]
[333966605,1722651045547,-500.0,0.00016712,2]
[333966606,1722651045556,-500.0,0.00016712,2]
[333966607,1722651045566,-500.0,0.00016712,2]
[333966608,1722651045576,-500.0,0.00016712,2]
[333966609,1722651045586,-1407.4,0.00016712,2]
[333966610,1722651045596,-773.3,0.00016712,2]
[333966611,1722651045605,-500.0,0.00016712,2]
[333966612,1722651045614,-500.0,0.00016712,2]
[333966613,1722651045623,-500.0,0.00016712,2]
[333966614,1722651045633,-500.0,0.00016712,2]
[333966615,1722651045642,-500.0,0.00016712,2]
[333966616,1722651045652,-556.21,0.00016712,2]
[333966617,1722651045661,-500.0,0.00016712,2]
[333966618,1722651045670,-500.0,0.00016712,2]
[333966619,1722651045680,-500.0,0.00016712,2]
[333966620,1722651045689,-576.3,0.00016712,2]
[333966622,1722651045698,-1453.56,0.00016712,2]
[333966624,1722651045707,-500.0,0.00016712,2]
[333966625,1722651045717,-500.0,0.00016712,2]
[333966627,1722651045726,-500.0,0.00016712,2]
[333966629,1722651045735,-500.0,0.00016712,2]
[333966631,1722651045745,-500.0,0.00016712,2]
[333966632,1722651045755,-229.42164407,0.00016712,2]
[333966633,1722651045766,-566.04,0.00016712,2]
[333966634,1722651045777,-502.48,0.00016712,2]
[333966635,1722651045786,-500.0,0.00016712,2]
[333966636,1722651045795,-503.68,0.00016712,2]
[333966637,1722651045805,-604.62,0.00016712,2]
[333966638,1722651045814,-500.0,0.00016712,2]
[333966639,1722651045823,-500.0,0.00016712,2]
[333966640,1722651045833,-989.64,0.00016712,2]
[333966641,1722651045842,-500.0,0.00016712,2]
[333966642,1722651045853,-1296.51,0.00016712,2]
[333966643,1722651045863,-944.97,0.00016712,2]
[333966644,1722651045873,-500.0,0.00016712,2]
[333966645,1722651045882,-500.0,0.00016712,2]
[333966646,1722651045891,-500.0,0.00016712,2]
[333966647,1722651045900,-1636.9,0.00016712,2]
[333966648,1722651045910,-987.93,0.00016712,2]
[333966649,1722651045919,-500.0,0.00016712,2]
[333966650,1722651045929,-500.0,0.00016712,2]
[333966652,1722651045939,-818.58,0.00016712,2]
[333966653,1722651045948,-500.0,0.00016712,2]
[333966654,1722651045957,-665.99,0.00016712,2]
[333966655,1722651045966,-1211.6,0.00016712,2]
[333966656,1722651045976,-624.86937825,0.00016712,2]
[333966657,1722651045985,-500.0,0.00016712,2]
[333966658,1722651045994,-624.91,0.00016712,2]
[333966659,1722651046090,-500.0,0.00016712,2]
[333966660,1722651046100,-581.89,0.00016712,2]
[333966661,1722651046109,-500.0,0.00016712,2]
[333966662,1722651046118,-500.0,0.00016712,2]
[333966663,1722651046127,-1055.76,0.00016712,2]
[333966664,1722651046136,-620.03,0.00016712,2]
[333966665,1722651046145,-591.25950614,0.00016712,2]
[333966666,1722651046154,-200.0,0.00016712,2]
[333966667,1722651046163,-865.01,0.00016712,2]
[333966668,1722651046172,-500.0,0.00016712,2]
[333966669,1722651046182,-1645.77,0.00016712,2]
[333966670,1722651046191,-639.3259616,0.00016712,2]
[333966671,1722651046201,-500.0,0.00016712,2]
[333966672,1722651046210,-500.0,0.00016712,2]
[333966673,1722651046219,-500.0,0.00016712,2]
[333966674,1722651046228,-500.0,0.00016712,2]
[333966675,1722651046237,-500.0,0.00016712,2]
[333966676,1722651046246,-596.17,0.00016712,2]
[333966677,1722651046256,-1449.05,0.00016712,2]
[333966678,1722651046265,-527.57,0.00016712,2]
[333966679,1722651046274,-500.0,0.00016712,2]
[333966680,1722651046283,-500.0,0.00016712,2]
[333966681,1722651046293,-500.0,0.00016712,2]
[333966682,1722651046302,-500.0,0.00016712,2]
[333966683,1722651046311,-1853.08,0.00016712,2]
[333966684,1722651046320,-500.0,0.00016712,2]
[333966685,1722651046329,-500.0,0.00016712,2]
[333966686,1722651046338,-690.06,0.00016712,2]
[333966687,1722651046347,-500.0,0.00016712,2]
[333966688,1722651046356,-1244.28,0.00016712,2]
[333966689,1722651046365,-500.0,0.00016712,2]
[333966690,1722651046374,-500.0,0.00016712,2]
[333966691,1722651046383,-500.0,0.00016712,2]
[333966692,1722651046392,-597.13,0.00016712,2]
[333966693,1722651046401,-900.1,0.00016712,2]
[333966694,1722651046410,-545.56,0.00016712,2]
[333966695,1722651046419,-500.0,0.00016712,2]
[333966696,1722651046428,-500.0,0.00016712,2]
[333966697,1722651046438,-581.4,0.00016712,2]
[333966698,1722651046447,-500.0,0.00016712,2]
[333966699,1722651046456,-500.0,0.00016712,2]
[333966700,1722651046465,-500.0,0.00016712,2]
[333966702,1722651046474,-500.0,0.00016712,2]
[333966704,1722651046483,-564.41,0.00016712,2]
[333966705,1722651046492,-500.0,0.00016712,2]
[333966707,1722651046501,-1004.46,0.00016712,2]
[333966709,1722651046511,-660.08,0.00016712,2]
[333966711,1722651046519,-500.0,0.00016712,2]
[333966713,1722651046529,-764.93,0.00016712,2]
[333966715,1722651046538,-500.0,0.00016712,2]
[333966716,1722651046548,-500.0,0.00016712,2]
[333966717,1722651046559,-500.0,0.00016712,2]
[333966718,1722651046570,-906.28,0.00016712,2]
[333966719,1722651046579,-500.0,0.00016712,2]
[333966720,1722651046588,-994.27,0.00016712,2]
[333966721,1722651046598,-631.39276816,0.00016712,2]
[333966722,1722651046607,-555.04,0.00016712,2]
[333966723,1722651046616,-822.72,0.00016712,2]
[333966724,1722651046626,-500.0,0.00016712,2]
[333966725,1722651046635,-676.25,0.00016712,2]
[333966726,1722651046644,-500.0,0.00016712,2]
[333966727,1722651046653,-945.6,0.00016712,2]
[333966728,1722651046662,-500.0,0.00016712,2]
[333966729,1722651046671,-637.84,0.00016712,2]
[333966730,1722651046680,-500.0,0.00016712,2]
[333966731,1722651046689,-565.72,0.00016712,2]
[333966732,1722651046699,-649.9,0.00016712,2]
[333966733,1722651046708,-1283.74,0.00016712,2]
[333966734,1722651046718,-500.0,0.00016712,2]
[333966735,1722651046727,-500.0,0.00016712,2]
[333966736,1722651046736,-500.0,0.00016712,2]
[333966737,1722651046745,-937.4,0.00016712,2]
[333966738,1722651046755,-756.75,0.00016712,2]
[333966739,1722651046766,-510.01,0.00016712,2]
[333966740,1722651046775,-1446.04,0.00016712,2]
[333966741,1722651046784,-500.0,0.00016712,2]
[333966742,1722651046793,-500.0,0.00016712,2]
[333966743,1722651046803,-500.0,0.00016712,2]
[333966744,1722651046812,-871.71,0.00016712,2]
[333966745,1722651046821,-6125.04,0.00016712,2]
[333966746,1722651046830,-963.47,0.00016712,2]
[333966747,1722651046842,-500.0,0.00016712,2]
[333966748,1722651046852,-1126.5,0.00016712,2]
[333966749,1722651046861,-500.0,0.00016712,2]
[333966750,1722651046870,-790.28,0.00016712,2]
[333966751,1722651046879,-500.0,0.00016712,2]
[333966752,1722651046889,-500.0,0.00016712,2]
[333966753,1722651046898,-500.0,0.00016712,2]
[333966754,1722651046907,-1355.78,0.00016712,2]
[333966755,1722651046917,-500.0,0.00016712,2]
[333966756,1722651046927,-558.35,0.00016712,2]
[333966757,1722651046936,-5198.65,0.00016712,2]
[333966758,1722651046945,-620.38,0.00016712,2]
[333966759,1722651046955,-643.09,0.00016712,2]
[333966760,1722651046964,-1558.02,0.00016712,2]
[333966761,1722651046973,-1008.39,0.00016712,2]
[333966762,1722651046983,-500.0,0.00016712,2]
[333966763,1722651046992,-590.58,0.00016712,2]
[333966764,1722651047002,-790.0,0.00016712,2]
[333966765,1722651047011,-889.11,0.00016712,2]
[333966766,1722651047021,-500.0,0.00016712,2]
[333966767,1722651047030,-14951.57,0.00016712,2]
[333966768,1722651047039,-500.0,0.00016712,2]
[333966769,1722651047049,-500.0,0.00016712,2]
[333966770,1722651047058,-1340.11,0.00016712,2]
[333966771,1722651047067,-500.0,0.00016712,2]
[333966772,1722651047076,-2030.71,0.00016712,2]
[333966773,1722651047085,-25180.43,0.00016712,2]
[333966774,1722651047095,-532.45,0.00016712,2]
[333966775,1722651047104,-500.0,0.00016712,2]
[333966776,1722651047114,-500.0,0.00016712,2]
[333966777,1722651047123,-2691.77,0.00016712,2]
[333966778,1722651047133,-992.05,0.00016712,2]
[333966779,1722651047142,-914.61,0.00016712,2]
[333966780,1722651047151,-1342.87,0.00016712,2]
[333966781,1722651047161,-1299.46,0.00016712,2]
[333966782,1722651047171,-500.0,0.00016712,2]
[333966783,1722651047180,-966.12,0.00016712,2]
[333966784,1722651047189,-2824.09,0.00016712,2]
[333966785,1722651047198,-500.0,0.00016712,2]
[333966786,1722651047207,-49366.31,0.00016712,2]
[333966787,1722651047217,-500.0,0.00016712,2]
[333966788,1722651047226,-500.0,0.00016712,2]
[333966789,1722651047236,-879.64,0.00016712,2]
[333966790,1722651047245,-781.04,0.00016712,2]
[333966791,1722651047254,-1202.72,0.00016712,2]
[333966792,1722651047264,-500.0,0.00016712,2]
[333966793,1722651047273,-500.0,0.00016712,2]
[333966794,1722651047283,-500.0,0.00016712,2]
[333966795,1722651047292,-1748.5,0.00016712,2]
[333966796,1722651047301,-759.45,0.00016712,2]
[333966797,1722651047311,-500.0,0.00016712,2]
[333966798,1722651047320,-355.79469788,0.00016712,2]
[333966799,1722651047329,-500.0,0.00016712,2]
[333966800,1722651047339,-1651.88,0.00016712,2]
[333966801,1722651047348,-500.0,0.00016712,2]
[333966802,1722651047358,-500.0,0.00016712,2]
[333966803,1722651047367,-560.17,0.00016712,2]
[333966804,1722651047376,-671.92,0.00016712,2]
[333966805,1722651047385,-500.0,0.00016712,2]
[333966806,1722651047394,-500.0,0.00016712,2]
[333966808,1722651047403,-500.0,0.00016712,2]
[333966810,1722651047413,-6045.32,0.00016712,2]
[333966811,1722651047422,-4190.73,0.00016712,2]
[333966813,1722651047431,-544.61,0.00016712,2]
[333966815,1722651047441,-500.0,0.00016712,2]
[333966817,1722651047450,-500.0,0.00016712,2]
[333966819,1722651047459,-12372.39,0.00016712,2]
[333966821,1722651047469,-1732.16,0.00016712,2]
[333966822,1722651047479,-692.02,0.00016712,2]
[333966823,1722651047488,-627.88,0.00016712,2]
[333966824,1722651047497,-949.22,0.00016712,2]
[333966825,1722651047507,-925.4,0.00016712,2]
[333966826,1722651047516,-500.0,0.00016712,2]
[333966827,1722651047526,-4997.88,0.00016712,2]
[333966828,1722651047535,-588.27,0.00016712,2]
[333966829,1722651047545,-500.0,0.00016712,2]
[333966830,1722651047554,-887.38,0.00016712,2]
[333966831,1722651047563,-1851.33,0.00016712,2]
[333966832,1722651047573,-500.0,0.00016712,2]
[333966833,1722651047583,-500.0,0.00016712,2]
[333966834,1722651047592,-500.0,0.00016712,2]
[333966835,1722651047601,-500.0,0.00016712,2]
[333966836,1722651047611,-1097.33,0.00016712,2]
[333966837,1722651047620,-500.0,0.00016712,2]
[333966838,1722651047630,-3456.06,0.00016712,2]
[333966839,1722651047639,-4090.13,0.00016712,2]
[333966840,1722651047649,-10163.74,0.00016712,2]
[333966841,1722651047659,-706.58,0.00016712,2]
[333966843,1722651047669,-7778.03,0.00016712,2]
[333966845,1722651047679,-659.3,0.00016712,2]
[333966846,1722651047688,-500.0,0.00016712,2]
[333966847,1722651047698,-3815.12,0.00016712,2]
[333966848,1722651047708,-1729.88,0.00016712,2]
[333966849,1722651047719,-666.18,0.00016712,2]
[333966850,1722651047729,-816.75,0.00016712,2]
[333966851,1722651047739,-3818.48,0.00016712,2]
[333966852,1722651047748,-812.49,0.00016712,2]
[333966853,1722651047759,-1689.63,0.00016712,2]
[333966854,1722651047771,-500.0,0.00016712,2]
[333966855,1722651047781,-500.0,0.00016712,2]
[333966856,1722651047790,-4172.06,0.00016712,2]
[333966857,1722651047799,-500.0,0.00016712,2]
[333966858,1722651047809,-5172.72,0.00016712,2]
[333966859,1722651047819,-500.0,0.00016712,2]
[333966860,1722651047829,-11958.78,0.00016712,2]
[333966861,1722651047839,-1067.53,0.00016712,2]
[333966862,1722651047849,-1558.03,0.00016712,2]
[333966863,1722651047859,-500.0,0.00016712,2]
[333966864,1722651047868,-1050.19,0.00016712,2]
[333966865,1722651047877,-500.0,0.00016712,2]
[333966866,1722651047887,-1012.98,0.00016712,2]
[333966867,1722651047897,-733.26,0.00016712,2]
[333966868,1722651047906,-500.0,0.00016712,2]
[333966869,1722651047916,-2806.73,0.00016712,2]
[333966870,1722651047925,-2322.26,0.00016712,2]
[333966871,1722651047934,-997.24,0.00016712,2]
[333966872,1722651047944,-2059.84,0.00016712,2]
[333966873,1722651047953,-942.89,0.00016712,2]
[333966874,1722651047963,-673.02,0.00016712,2]
[333966875,1722651047972,-2054.3,0.00016712,2]
[333966876,1722651047982,-500.0,0.00016712,2]
[333966877,1722651047991,-500.0,0.00016712,2]
[333966878,1722651048001,-500.0,0.00016712,2]
[333966879,1722651048011,-500.0,0.00016712,2]
[333966880,1722651048021,-536.32,0.00016712,2]
[333966881,1722651048031,-1241.54,0.00016712,2]
[333966882,1722651048042,-500.0,0.00016712,2]
[333966883,1722651048053,-1590.63,0.00016712,2]
[333966884,1722651048064,-871.6,0.00016712,2]
[333966885,1722651048074,-802.19,0.00016712,2]
[333966886,1722651048085,-1313.97,0.00016712,2]
[333966887,1722651048095,-2971.93,0.00016712,2]
[333966888,1722651048105,-500.0,0.00016712,2]
[333966889,1722651048115,-3990.14,0.00016712,2]
[333966890,1722651048124,-926.65,0.00016712,2]
[333966891,1722651048133,-2336.97,0.00016712,2]
[333966892,1722651048143,-741.17,0.00016712,2]
[333966893,1722651048152,-523.19,0.00016712,2]
[333966894,1722651048162,-500.0,0.00016712,2]
[333966895,1722651048172,-500.0,0.00016712,2]
[333966896,1722651048182,-500.0,0.00016712,2]
[333966897,1722651048191,-1859.03,0.00016712,2]
[333966898,1722651048200,-673.55,0.00016712,2]
[333966899,1722651048210,-1318.07,0.00016712,2]
[333966900,1722651048220,-505.75,0.00016712,2]
[333966901,1722651048230,-5540.76,0.00016712,2]
[333966902,1722651048239,-540.6,0.00016712,2]
[333966903,1722651048249,-1459.74,0.00016712,2]
[333966904,1722651048258,-3355.43,0.00016712,2]
[333966905,1722651048268,-500.0,0.00016712,2]
[333966906,1722651048277,-600.93,0.00016712,2]
[333966907,1722651048287,-500.0,0.00016712,2]
[333966908,1722651048296,-500.0,0.00016712,2]
[333966909,1722651048306,-500.0,0.00016712,2]
[333966910,1722651048315,-5339.03,0.00016712,2]
[333966911,1722651048325,-500.0,0.00016712,2]
[333966912,1722651048334,-500.0,0.00016712,2]
[333966913,1722651048344,-1543.59,0.00016712,2]
[333966914,1722651048353,-723.18,0.00016712,2]
[333966915,1722651048362,-524.15,0.00016712,2]
[333966916,1722651048372,-500.0,0.00016712,2]
[333966917,1722651048382,-500.0,0.00016712,2]
[333966918,1722651048391,-500.0,0.00016712,2]
[333966919,1722651048400,-691.88,0.00016712,2]
[333966920,1722651048410,-760.85,0.00016712,2]
[333966921,1722651048419,-1015.01,0.00016712,2]
[333966922,1722651048429,-500.0,0.00016712,2]
[333966923,1722651048438,-2306.27,0.00016712,2]
[333966924,1722651048449,-6234.07,0.00016712,2]
[333966925,1722651048458,-2685.23,0.00016712,2]
[333966926,1722651048468,-895.56,0.00016712,2]
[333966927,1722651048477,-1768.15,0.00016712,2]
[333966928,1722651048487,-3831.59,0.00016712,2]
[333966929,1722651048496,-500.0,0.00016712,2]
[333966930,1722651048505,-785.32,0.00016712,2]
[333966931,1722651048515,-1280.72,0.00016712,2]
[333966932,1722651048524,-13292.19,0.00016712,2]
[333966933,1722651048534,-2008.03,0.00016712,2]
[333966934,1722651048543,-500.0,0.00016712,2]
[333966935,1722651048553,-5100.58204454,0.00016712,2]
[333966936,1722651048597,-711.18795546,0.00016712,2]
[333966937,1722651048607,-213.02891873,0.00016712,2]
[333966938,1722651048617,-500.0,0.00016712,2]
[333966939,1722651048627,-2369.44,0.00016712,2]
[333966940,1722651048637,-905.95,0.00016712,2]
[333966941,1722651048647,-500.0,0.00016712,2]
[333966942,1722651048656,-500.0,0.00016712,2]
[333966943,1722651048666,-547.18,0.00016712,2]
[333966944,1722651048675,-2988.16,0.00016712,2]
[333966945,1722651048685,-500.0,0.00016712,2]
[333966946,1722651048695,-500.0,0.00016712,2]
[333966947,1722651048704,-661.01,0.00016712,2]
[333966948,1722651048714,-500.0,0.00016712,2]
[333966949,1722651048724,-244.05737219,0.00016712,2]
[333966950,1722651048735,-255.94262781,0.00016712,2]
[333966951,1722651048745,-718.11,0.00016712,2]
[333966952,1722651048754,-500.0,0.00016712,2]
[333966953,1722651048767,-500.0,0.00016712,2]
[333966954,1722651048777,-500.0,0.00016712,2]
[333966955,1722651048787,-1760.36,0.00016712,2]
[333966956,1722651048796,-1115.98,0.00016712,2]
[333966957,1722651048806,-731.82,0.00016712,2]
[333966958,1722651048815,-1319.87,0.00016712,2]
[333966959,1722651048825,-1011.09,0.00016712,2]
[333966960,1722651048835,-500.0,0.00016712,2]
[333966961,1722651048846,-1314.38,0.00016712,2]
[333966962,1722651048856,-500.0,0.00016712,2]
[333966963,1722651048865,-2336.27,0.00016712,2]
[333966964,1722651048876,-611.32,0.00016712,2]
[333966965,1722651048886,-500.0,0.00016712,2]
[333966966,1722651048895,-1121.77,0.00016712,2]
[333966967,1722651048905,-3104.99,0.00016712,2]
[333966968,1722651048915,-500.0,0.00016712,2]
[333966969,1722651048925,-2387.61,0.00016712,2]
[333966970,1722651048934,-662.19,0.00016712,2]
[333966971,1722651048944,-2676.4,0.00016712,2]
[333966972,1722651048954,-3608.5,0.00016712,2]